lending/lending_fUSD_20241214
["ID","MTS","AMOUNT","RATE_DAILY","PERIOD"]
[345355004,1734179441675,-600.0,0.00021917,3]
[345355006,1734179441684,-600.0,0.00021917,3]
[345355008,1734179441693,-600.0,0.00021917,3]
[345355010,1734179441702,-602.92344933,0.00021917,3]
[345355012,1734179441712,-1000.0,0.00021917,3]
[345355014,1734179441721,-1000.0,0.00021917,3]
[345355016,1734179441737,-1000.0,0.00021917,3]
[345355018,1734179441746,-1000.0,0.00021917,3]
[345355020,1734179441756,-1000.0,0.00021917,3]
[345355022,1734179441765,-1000.0,0.00021917,3]
[345355024,1734179441774,-1000.0,0.00021917,3]
[345355026,1734179441784,-1000.0,0.00021917,3]
[345355028,1734179441793,-1000.0,0.00021917,3]
[345355030,1734179441803,-1000.0,0.00021917,3]
[345355032,1734179441812,-1000.0,0.00021917,3]
[345355034,1734179441821,-1000.0,0.00021917,3]
[345355036,1734179441830,-1000.0,0.00021917,3]
[345355038,1734179441839,-1000.0,0.00021917,3]
[345355040,1734179441849,-1000.0,0.00021917,3]
[345355042,1734179441858,-1000.0,0.00021917,3]
[345355044,1734179441867,-1000.0,0.00021917,3]
[345355046,1734179441878,-1000.0,0.00021917,3]
[345355048,1734179441888,-1000.0,0.00021917,3]
[345355051,1734179441898,-1000.0,0.00021917,3]
[345355052,1734179441908,-984.78,0.00021917,3]
[345355055,1734179441918,-984.78,0.00021917,3]
[345355057,1734179441927,-984.78,0.00021917,3]
[345355058,1734179441937,-984.78,0.00021917,3]
[345355060,1734179441946,-984.78,0.00021917,3]
[345355062,1734179441955,-984.78,0.00021917,3]
[345355064,1734179441964,-984.78,0.00021917,3]
[345355066,1734179441973,-984.78,0.00021917,3]
[345355068,1734179441989,-984.78,0.00021917,3]
[345355071,1734179441998,-984.78,0.00021917,3]
[345355072,1734179442008,-984.78,0.00021917,3]
[345355074,1734179442017,-984.78,0.00021917,3]
[345355076,1734179442026,-984.78,0.00021917,3]
[345355078,1734179442036,-984.78,0.00021917,3]
[345355080,1734179442046,-984.78,0.00021917,3]
[345355082,1734179442055,-500.0,0.00021917,2]
[345355085,1734179442065,-984.78,0.00021917,3]
[345355087,1734179442075,-506.49223696,0.00021917,2]
[345355088,1734179442084,-984.78,0.00021917,3]
[345355090,1734179442093,-984.78,0.00021917,3]
[345355092,1734179442103,-984.78,0.00021917,3]
[345355094,1734179442115,-984.78,0.00021917,3]
[345355096,1734179442125,-984.78,0.00021917,3]
[345355098,1734179442135,-984.78,0.00021917,3]
[345355100,1734179442145,-984.78,0.00021917,3]
[345355102,1734179442155,-984.95565118,0.00021917,3]
[345355104,1734179442164,-605.71,0.00021934,2]
[345355106,1734179442173,-500.0,0.00021973,2]
[345355108,1734179442183,-500.0,0.00021973,2]
[345355110,1734179442194,-314.40301345,0.00021973,2]
[345355112,1734179442204,-300.25341394,0.00021973,2]
[345355114,1734179442214,-500.44414763,0.00021973,2]
[345355116,1734179442227,-8000.0,0.00022,7]
[345355118,1734179442236,-1088.2908915,0.00022,2]
[345355120,1734179442245,-6500.0,0.00022,7]
[345355122,1734179442254,-3600.0,0.00022,23]
[345355124,1734179442264,-13209.42,0.00022,2]
[345355126,1734179442274,-3000.97076033,0.00022,30]
[345355128,1734179442283,-1069.47724635,0.00022,2]
[345355130,1734179442292,-7794.00116439,0.00022,2]
[345355132,1734179442302,-9946.76561818,0.00022,5]
[345355134,1734179442310,-1400.0,0.00022,4]
[345355136,1734179442320,-500.0,0.00022,3]
[345355137,1734179442328,-641.54720828,0.00022,2]
[345355138,1734179442338,-4000.0,0.00022,2]
[345355139,1734179442347,-10000.0,0.00022,2]
[345355140,1734179442356,-2200.0,0.00022,30]
[345355141,1734179442365,-4663.91887227,0.00022,30]
[345355142,1734179442374,-118586.147112,0.00022,60]
[345355143,1734179442383,-244.99728036,0.00022,2]
[345355144,1734179442392,-49296.60141262,0.00022,2]
[345355145,1734179442400,-754.23023519,0.00022,7]
[345355146,1734179442410,-7997.64545203,0.00022,15]
[345355148,1734179442419,-300.97202999,0.00022,5]
[345355150,1734179442427,-500.0,0.00022,2]
[345355151,1734179442437,-578.03566364,0.00022,3]
[345355153,1734179442446,-7500.0,0.00022,60]
[345355155,1734179442456,-1850.0,0.0002205,2]
[345355157,1734179442466,-775.78332479,0.0002205,2]
[345355159,1734179442479,-605.71,0.00022071,2]
[345355162,1734179442490,-500.0,0.00022072,2]
[345355164,1734179442499,-150.0,0.00022072,2]
[345355168,1734179442510,-500.0,0.00022072,2]
[345355171,1734179442521,-2476.0,0.00022072,2]
[345355174,1734179442531,-1377.0,0.00022072,2]
[345355177,1734179442540,-150.0,0.0002208,120]
[345355179,1734179442548,-1255.59347,0.00022088,7]
[345355182,1734179442558,-200.0,0.00022113,2]
[345355184,1734179442567,-200.0,0.00022113,2]
[345355186,1734179442575,-200.0,0.00022113,2]
[345355188,1734179442585,-332.87,0.00022129,2]
[345355190,1734179442594,-820.21,0.00022133,2]
[345355192,1734179442604,-401.0,0.000222,10]
[345355194,1734179442613,-605.71,0.00022208,2]
[345355196,1734179442621,-1850.0,0.0002227,2]
[345355198,1734179442631,-1255.59347,0.00022288,7]
[345355200,1734179442640,-6000.0,0.00022322,31]
[345355202,1734179442650,-605.71,0.00022345,2]
[345355204,1734179442659,-500.0,0.00022346,2]
[345355206,1734179442668,-150.09416605,0.00022346,2]
[345355208,1734179442677,-500.0,0.00022346,2]
[345355210,1734179442687,-2476.0,0.00022346,2]
[345355212,1734179442697,-1377.0,0.00022346,2]
[345355214,1734179442706,-150.0,0.0002235,120]
[345355216,1734179442715,-2241.29,0.000224,31]
[345355218,1734179442727,-2241.29,0.000224,31]
[345355220,1734179442737,-2241.29,0.000224,31]
[345355222,1734179442746,-2241.29,0.000224,31]
[345355224,1734179442754,-2241.29,0.000224,31]
[345355226,1734179442762,-2241.29,0.000224,31]
[345355228,1734179442771,-2241.29,0.000224,31]
[345355230,1734179442780,-2241.29,0.000224,31]
[345355232,1734179442789,-2241.29,0.000224,31]
[345355234,1734179442797,-2241.29,0.000224,31]
[345355235,1734179442806,-2241.29,0.000224,31]
[345355237,1734179442814,-2241.29,0.000224,31]
[345355239,1734179442823,-2241.29,0.000224,31]
[345355241,1734179442832,-2241.29,0.000224,31]
[345355243,1734179442841,-2241.29,0.000224,31]
[345355245,1734179442851,-2241.29,0.000224,31]
[345355247,1734179442860,-704.33337822,0.00022421,2]
[345355249,1734179442869,-1000.0,0.00022421,2]
[345355251,1734179442877,-150.0,0.00022448,120]
[345355253,1734179442886,-350.0,0.00022465,2]
[345355255,1734179442895,-347.44933964,0.00022465,2]
[345355257,1734179442904,-605.71,0.00022482,2]
[345355259,1734179442913,-1255.59347,0.00022488,7]
[345355261,1734179442922,-1850.0,0.00022491,2]
[345355263,1734179442931,-8430.96066851,0.000225,7]
[345355265,1734179442941,-1027.7715276,0.00022521,2]
[345355267,1734179442950,-1000.0,0.00022521,2]
[345355269,1734179442959,-168.88,0.00022595,2]
[345355271,1734179442968,-605.71,0.00022619,2]
[345355273,1734179442982,-792.49802354,0.0002262,2]
[345355275,1734179442992,-500.0,0.0002262,2]
[345355277,1734179443001,-2476.0,0.0002262,2]
[345355278,1734179443011,-1377.0,0.0002262,2]
[345355279,1734179443020,-1255.59347,0.00022688,7]
[345355280,1734179443029,-401.0,0.000227,10]
[345355281,1734179443039,-1850.0,0.00022711,2]
[345355282,1734179443048,-1000.0,0.00022715,2]
[345355283,1734179443058,-558.94,0.00022715,2]
[345355284,1734179443067,-1056.0,0.00022748,2]
[345355285,1734179443076,-605.71,0.00022756,2]
[345355286,1734179443085,-150.0,0.00022817,120]
[345355287,1734179443094,-5705.96772117,0.00022852,7]
[345355288,1734179443104,-605.71,0.00022893,2]
[345355289,1734179443115,-500.0,0.00022894,2]
[345355290,1734179443126,-2476.0,0.00022894,2]
[345355291,1734179443135,-1377.0,0.00022894,2]
[345355292,1734179443145,-887.5368829,0.00023,30]
[345355293,1734179443155,-50999.999999,0.00023,10]
[345355294,1734179443164,-5063.78050185,0.00023,2]
[345355295,1734179443174,-1000.0,0.00023,120]
[345355296,1734179443186,-3893.0,0.00023,3]
[345355297,1734179443195,-500.0,0.00023,3]
[345355298,1734179443205,-3600.0,0.00023,24]
[345355299,1734179443214,-10000.0,0.00023,2]
[345355300,1734179443224,-500.0,0.00023,2]
[345355301,1734179443236,-700.0,0.00023,30]
[345355302,1734179443246,-500.0,0.00023,30]
[345355303,1734179443255,-500.0,0.00023,30]
[345355304,1734179443265,-700.0,0.00023,30]
[345355305,1734179443275,-500.0,0.00023,30]
[345355306,1734179443284,-500.0,0.00023,30]
[345355307,1734179443293,-273.88024212,0.00023,30]
[345355308,1734179443307,-700.0,0.00023,30]
[345355309,1734179443317,-700.0,0.00023,30]
[345355310,1734179443326,-700.0,0.00023,30]
[345355311,1734179443336,-500.0,0.00023,30]
[345355312,1734179443345,-969.25624918,0.00023,30]
[345355313,1734179443354,-700.0,0.00023,30]
[345355314,1734179443364,-162.87303827,0.00023,30]
[345355315,1734179443373,-700.0,0.00023,30]
[345355316,1734179443383,-500.0,0.00023,30]
[345355317,1734179443392,-700.0,0.00023,30]
[345355318,1734179443403,-700.0,0.00023,30]
[345355319,1734179443412,-700.0,0.00023,30]
[345355320,1734179443421,-985.54968241,0.00023,30]
[345355321,1734179443431,-500.0,0.00023,30]
[345355322,1734179443440,-700.0,0.00023,30]
[345355323,1734179443450,-700.0,0.00023,30]
[345355324,1734179443459,-700.0,0.00023,30]
[345355325,1734179443468,-500.0,0.00023,30]
[345355327,1734179443482,-700.0,0.00023,30]
[345355329,1734179443492,-700.0,0.00023,30]
[345355331,1734179443501,-500.0,0.00023,30]
[345355333,1734179443511,-700.0,0.00023,30]
[345355335,1734179443521,-700.0,0.00023,30]
[345355337,1734179443530,-159.10844445,0.00023,30]
[345355339,1734179443540,-700.0,0.00023,30]
[345355340,1734179443550,-500.0,0.00023,30]
[345355341,1734179443559,-500.0,0.00023,30]
[345355342,1734179443569,-700.0,0.00023,30]
[345355343,1734179443580,-700.0,0.00023,30]
[345355344,1734179443590,-700.0,0.00023,30]
[345355345,1734179443599,-500.0,0.00023,30]
[345355346,1734179443609,-700.0,0.00023,30]
[345355347,1734179443618,-700.0,0.00023,30]
[345355348,1734179443628,-700.0,0.00023,30]
[345355349,1734179443637,-687.51826944,0.00023,30]
[345355350,1734179443647,-700.0,0.00023,30]
[345355351,1734179443656,-810.0,0.00023,30]
[345355352,1734179443665,-700.0,0.00023,30]
[345355353,1734179443675,-700.0,0.00023,30]
[345355354,1734179443684,-700.0,0.00023,30]
[345355355,1734179443695,-207.91296597,0.00023,30]
[345355356,1734179443704,-500.7,0.00023,30]
[345355357,1734179443714,-160.01117531,0.00023,30]
[345355358,1734179443728,-500.0,0.00023,30]
[345355359,1734179443738,-297.26394791,0.00023,30]
[345355360,1734179443748,-500.0,0.00023,30]
[345355361,1734179443757,-500.0,0.00023,30]
[345355362,1734179443766,-500.0,0.00023,30]
[345355363,1734179443776,-500.0,0.00023,30]
[345355364,1734179443785,-159.33598802,0.00023,30]
[345355365,1734179443794,-546.91310322,0.00023,30]
[345355366,1734179443803,-500.0,0.00023,30]
[345355367,1734179443812,-500.0,0.00023,30]
[345355368,1734179443822,-500.0,0.00023,30]
[345355369,1734179443831,-475.24133958,0.00023,30]
[345355370,1734179443840,-500.0,0.00023,30]
[345355371,1734179443850,-187.25450627,0.00023,30]
[345355372,1734179443860,-500.0,0.00023,30]
[345355373,1734179443870,-707.37451852,0.00023,30]
[345355374,1734179443880,-736.17466217,0.00023,30]
[345355375,1734179443889,-500.0,0.00023,30]
[345355376,1734179443898,-500.0,0.00023,30]
[345355377,1734179443908,-500.0,0.00023,30]
[345355378,1734179443918,-156.7762905,0.00023,30]
[345355379,1734179443928,-500.0,0.00023,30]
[345355380,1734179443937,-600.0,0.00023,30]
[345355381,1734179443947,-500.0,0.00023,30]
[345355382,1734179443956,-500.0,0.00023,30]
[345355383,1734179444093,-600.0,0.00023,30]
[345355384,1734179444105,-500.0,0.00023,30]
[345355385,1734179444119,-500.0,0.00023,30]
[345355386,1734179444129,-500.0,0.00023,30]
[345355387,1734179444139,-600.0,0.00023,30]
[345355388,1734179444149,-954.06167408,0.00023,30]
[345355389,1734179444159,-473.21871603,0.00023,30]
[345355390,1734179444171,-500.0,0.00023,30]
[345355391,1734179444180,-500.0,0.00023,30]
[345355392,1734179444190,-500.0,0.00023,30]
[345355393,1734179444200,-600.0,0.00023,30]
[345355394,1734179444210,-938.42994283,0.00023,30]
[345355395,1734179444220,-600.0,0.00023,30]
[345355396,1734179444236,-500.0,0.00023,30]
[345355397,1734179444245,-600.0,0.00023,30]
[345355398,1734179444255,-500.0,0.00023,30]
[345355399,1734179444265,-600.0,0.00023,30]
[345355400,1734179444275,-500.0,0.00023,30]
[345355401,1734179444284,-500.0,0.00023,30]
[345355402,1734179444293,-500.0,0.00023,30]
[345355403,1734179444303,-600.0,0.00023,30]
[345355404,1734179444313,-500.0,0.00023,30]
[345355405,1734179444322,-500.0,0.00023,30]
[345355406,1734179444332,-500.0,0.00023,30]
[345355407,1734179444341,-600.0,0.00023,30]
[345355408,1734179444351,-500.0,0.00023,30]
[345355409,1734179444361,-500.0,0.00023,30]
[345355410,1734179444370,-500.0,0.00023,30]
[345355411,1734179444380,-600.0,0.00023,30]
[345355412,1734179444390,-500.0,0.00023,30]
[345355413,1734179444399,-500.0,0.00023,30]
[345355414,1734179444408,-500.0,0.00023,30]
[345355415,1734179444418,-600.0,0.00023,30]
[345355416,1734179444427,-500.0,0.00023,30]
[345355417,1734179444437,-500.0,0.00023,30]
[345355418,1734179444447,-500.0,0.00023,30]
[345355419,1734179444455,-600.0,0.00023,30]
[345355420,1734179444465,-500.0,0.00023,30]
[345355421,1734179444474,-500.0,0.00023,30]
[345355422,1734179444488,-500.0,0.00023,30]
[345355423,1734179444497,-600.0,0.00023,30]
[345355424,1734179444508,-500.0,0.00023,30]
[345355425,1734179444517,-500.0,0.00023,30]
[345355426,1734179444527,-500.0,0.00023,30]
[345355427,1734179444536,-600.0,0.00023,30]
[345355428,1734179444546,-500.0,0.00023,30]
[345355429,1734179444555,-500.0,0.00023,30]
[345355430,1734179444565,-500.0,0.00023,30]
[345355431,1734179444574,-500.0,0.00023,30]
[345355432,1734179444584,-500.0,0.00023,30]
[345355433,1734179444594,-176.0,0.00023,2]
[345355434,1734179444603,-267.14348105,0.0002301,2]
[345355435,1734179444613,-605.71,0.0002303,2]
[345355436,1734179444622,-1255.59347,0.00023088,7]
[345355437,1734179444632,-605.71,0.00023167,2]
[345355438,1734179444642,-701.05170355,0.00023168,2]
[345355439,1734179444651,-2476.0,0.00023168,2]
[345355440,1734179444661,-1377.0,0.00023168,2]
[345355441,1734179444671,-49813.0830957,0.000232,2]
[345355442,1734179444680,-401.0,0.000232,11]
[345355443,1734179444690,-567.15434985,0.0002322,2]
[345355444,1734179444699,-1500.0,0.00023287,3]
[345355445,1734179444708,-734.49806596,0.00023287,3]
[345355446,1734179444718,-1255.59347,0.00023288,7]
[345355447,1734179444731,-300.0,0.000233,2]
[345355448,1734179444740,-605.71,0.00023304,2]
[345355449,1734179444750,-168.89,0.00023374,2]
[345355450,1734179444759,-1395.94714062,0.00023422,2]
[345355451,1734179444768,-605.71,0.00023441,2]
[345355452,1734179444778,-2476.0,0.00023442,2]
[345355453,1734179444787,-1377.0,0.00023442,2]
[345355454,1734179444797,-1255.59347,0.00023488,7]
[345355455,1734179444807,-332.92,0.0002349,2]
[345355456,1734179444817,-180.79,0.0002349,2]
[345355457,1734179444825,-1500.0,0.00023522,2]
[345355458,1734179444835,-150.0,0.00023572,2]
[345355459,1734179444844,-605.71,0.00023578,2]
[345355460,1734179444853,-716897.235649,0.0002361,7]
[345355461,1734179444862,-151.0,0.0002361,7]
[345355462,1734179444872,-151.0,0.0002361,7]
[345355463,1734179444881,-151.0,0.0002361,7]
[345355464,1734179444890,-151.0,0.0002361,7]
[345355465,1734179444900,-151.0,0.0002361,7]
[345355466,1734179444909,-152.4432,0.0002361,7]
[345355467,1734179444919,-151.0,0.0002361,7]
[345355468,1734179444928,-151.0,0.0002361,7]
[345355469,1734179444937,-151.0,0.0002361,7]
[345355470,1734179444946,-151.0,0.0002361,7]
[345355471,1734179444956,-151.0,0.0002361,7]
[345355472,1734179444965,-151.0,0.0002361,7]
[345355473,1734179444975,-151.0,0.0002361,7]
[345355474,1734179444987,-151.0,0.0002361,7]
[345355475,1734179444997,-151.0,0.0002361,7]
[345355476,1734179445006,-151.0,0.0002361,7]
[345355477,1734179445016,-151.0,0.0002361,7]
[345355478,1734179445025,-151.0,0.0002361,7]
[345355479,1734179445034,-309.491203,0.0002361,7]
[345355480,1734179445044,-309.491203,0.0002361,7]
[345355481,1734179445054,-151.0,0.0002361,7]
[345355482,1734179445063,-1987.08,0.00023663,2]
[345355483,1734179445072,-435.63,0.00023671,2]
[345355484,1734179445081,-1957.32,0.00023671,2]
[345355485,1734179445091,-1255.59347,0.00023688,7]
[345355486,1734179445100,-401.0,0.000237,11]
[345355487,1734179445109,-605.71,0.00023715,2]
[345355488,1734179445122,-2476.0,0.00023716,2]
[345355489,1734179445131,-1377.0,0.00023716,2]
[345355490,1734179445141,-150.0,0.00023838,120]
[345355491,1734179445150,-605.71,0.00023852,2]
[345355492,1734179445159,-1056.0,0.00023885,2]
[345355493,1734179445168,-335304.0,0.00023922,2]
[345355494,1734179445177,-150.0,0.00023968,120]
[345355495,1734179445187,-605.71,0.00023989,2]
[345355496,1734179445196,-2476.0,0.0002399,2]
[345355497,1734179445206,-1377.0,0.0002399,2]
[345355498,1734179445215,-2200.0,0.00024,30]
[345355499,1734179445225,-974.51560659,0.00024,2]
[345355500,1734179445238,-1000.0,0.00024,120]
[345355501,1734179445248,-1614.7,0.00024,30]
[345355502,1734179445257,-7871.50335667,0.00024,7]
[345355503,1734179445266,-68949.84057642,0.00024,2]
[345355504,1734179445276,-500.0,0.00024,3]
[345355505,1734179445285,-10000.0,0.00024,30]
[345355506,1734179445295,-3600.0,0.00024,25]
[345355507,1734179445304,-10000.0,0.00024,2]
[345355508,1734179445313,-777.59891708,0.0002402,2]
[345355509,1734179445323,-5000.0,0.00024021,2]
[345355510,1734179445332,-4268.43,0.00024024,2]
[345355511,1734179445341,-1902.57,0.00024038,2]
[345355512,1734179445351,-1979.71,0.00024047,2]
[345355513,1734179445360,-25000.0,0.00024057,2]
[345355514,1734179445369,-7396.5,0.00024088,2]
[345355515,1734179445379,-1858.39468832,0.000241,2]
[345355517,1734179445388,-462.78,0.00024117,2]
[345355518,1734179445399,-605.71,0.00024126,2]
[345355519,1734179445409,-150.99,0.00024174,2]
[345355520,1734179445418,-5000.0,0.00024184,2]
[345355521,1734179445427,-25000.0,0.00024187,2]
[345355522,1734179445437,-5000.0,0.00024188,2]
[345355523,1734179445446,-5000.0,0.0002419,2]
[345355524,1734179445456,-25000.0,0.00024197,2]
[345355525,1734179445465,-5000.0,0.00024198,2]
[345355526,1734179445474,-401.0,0.000242,12]
[345355527,1734179445488,-5000.0,0.00024208,2]
[345355528,1734179445497,-402.70338849,0.0002421,2]
[345355529,1734179445507,-3528.65433681,0.0002421,2]
[345355530,1734179445516,-1628.5,0.0002422,2]
[345355531,1734179445526,-31517.54590689,0.00024223,2]
[345355532,1734179445535,-897088.59158753,0.0002425,50]
[345355533,1734179445544,-150.0,0.0002425,2]
[345355534,1734179445553,-150.0,0.0002425,2]
[345355535,1734179445562,-150.0,0.0002425,2]
[345355536,1734179445571,-150.0,0.0002425,2]
[345355537,1734179445580,-3765.0,0.0002425,2]
[345355538,1734179445590,-1254.0,0.0002425,2]
[345355539,1734179445598,-817.0,0.0002425,2]
[345355540,1734179445607,-318.21,0.0002425,2]
[345355541,1734179445617,-930.0,0.0002425,2]
[345355542,1734179445627,-1389.204,0.0002425,2]
[345355543,1734179445636,-634.0,0.0002425,2]
[345355544,1734179445645,-1263.0,0.0002425,2]
[345355545,1734179445655,-567.0,0.0002425,2]
[345355546,1734179445664,-5000.0,0.00024255,2]
[345355547,1734179445674,-176.0,0.00024255,2]
[345355548,1734179445683,-605.71,0.00024263,2]
[345355549,1734179445692,-2000.0,0.00024263,120]
[345355550,1734179445701,-502.652294,0.00024263,120]
[345355551,1734179445711,-202.180823,0.00024263,120]
[345355552,1734179445720,-2476.0,0.00024264,2]
[345355553,1734179445733,-1377.0,0.00024264,2]
[345355554,1734179445742,-2544.02,0.00024282,2]
[345355555,1734179445751,-5000.0,0.00024293,2]
[345355556,1734179445760,-5000.0,0.00024312,2]
[345355557,1734179445770,-1430.67,0.00024356,2]
[345355558,1734179445779,-5000.0,0.00024382,2]
[345355559,1734179445788,-25000.0,0.00024396,2]
[345355560,1734179445797,-820.21,0.00024397,2]
[345355561,1734179445806,-1000.0,0.000244,120]
[345355562,1734179445816,-605.83565416,0.000244,2]
[345355563,1734179445825,-338.21523518,0.0002442,2]
[345355564,1734179445834,-5000.0,0.00024426,2]
[345355565,1734179445844,-4079.39,0.0002443,2]
[345355567,1734179445853,-243.7088593,0.00024436,5]
[345355569,1734179445862,-5000.0,0.0002444,2]
[345355571,1734179445871,-2427.57,0.00024445,2]
[345355573,1734179445880,-16810.78925026,0.0002445,2]
[345355575,1734179445889,-5000.0,0.00024469,2]
[345355577,1734179445899,-5000.0,0.00024472,2]
[345355579,1734179445908,-5000.0,0.00024499,2]
[345355581,1734179445918,-25000.0,0.0002451,2]
[345355583,1734179445927,-25627.12570419,0.00024514,2]
[345355585,1734179445937,-2544.02,0.00024534,2]
[345355587,1734179445946,-2476.0,0.00024538,2]
[345355589,1734179445955,-1377.0,0.00024538,2]
[345355590,1734179445964,-2500.0,0.0002456,2]
[345355592,1734179445974,-5000.0,0.00024581,2]
[345355593,1734179445987,-2189.27,0.00024584,2]
[345355594,1734179445997,-5000.0,0.00024585,2]
[345355595,1734179446006,-332.87,0.00024587,2]
[345355596,1734179446015,-5000.0,0.0002459,2]
[345355597,1734179446024,-5000.0,0.00024604,2]
[345355598,1734179446034,-4260.66,0.00024605,2]
[345355599,1734179446043,-1000.0,0.00024657,3]
[345355600,1734179446052,-414.75109967,0.00024657,3]
[345355601,1734179446062,-150.0,0.00024658,7]
[345355602,1734179446071,-241.163158,0.00024658,7]
[345355603,1734179446080,-241.163158,0.00024658,7]
[345355604,1734179446090,-1000.0,0.00024658,2]
[345355605,1734179446099,-8676.85,0.00024658,4]
[345355606,1734179446110,-150.5,0.0002467,120]
[345355608,1734179446122,-417.0,0.0002467,120]
[345355609,1734179446131,-417.0,0.0002467,120]
[345355610,1734179446140,-603.0,0.0002467,30]
[345355611,1734179446150,-603.0,0.0002467,30]
[345355612,1734179446159,-150.5,0.0002468,120]
[345355613,1734179446168,-247.66,0.0002468,30]
[345355614,1734179446177,-417.0,0.0002468,120]
[345355615,1734179446187,-212.34,0.0002468,120]
[345355616,1734179446196,-417.0,0.0002468,120]
[345355617,1734179446206,-417.0,0.0002468,120]
[345355618,1734179446215,-424.4,0.0002468,120]
[345355619,1734179446224,-603.0,0.0002468,30]
[345355620,1734179446238,-603.0,0.0002468,30]
[345355621,1734179446247,-603.0,0.0002468,30]
[345355622,1734179446256,-606.58,0.0002468,30]
[345355623,1734179446266,-284.34,0.0002468,120]
[345355624,1734179446275,-150.5,0.0002469,120]
[345355625,1734179446284,-150.5,0.0002469,30]
[345355626,1734179446293,-417.0,0.0002469,120]
[345355627,1734179446302,-150.5,0.0002469,120]
[345355628,1734179446311,-417.0,0.0002469,120]
[345355629,1734179446320,-417.0,0.0002469,120]
[345355630,1734179446329,-417.0,0.0002469,120]
[345355631,1734179446338,-150.5,0.0002469,120]
[345355632,1734179446347,-603.0,0.0002469,30]
[345355633,1734179446357,-603.0,0.0002469,30]
[345355634,1734179446368,-603.0,0.0002469,30]
[345355635,1734179446377,-603.0,0.0002469,30]
[345355636,1734179446386,-7426.92,0.000247,7]
[345355637,1734179446395,-400.0,0.000247,2]
[345355638,1734179446404,-401.0,0.000247,13]
[345355639,1734179446414,-200.0,0.000247,2]
[345355640,1734179446423,-500.0,0.000247,2]
[345355641,1734179446432,-4504.15,0.00024726,2]
[345355642,1734179446441,-5000.0,0.00024729,2]
[345355643,1734179446450,-25000.0,0.00024755,2]
[345355644,1734179446459,-5000.0,0.00024763,2]
[345355645,1734179446469,-5000.0,0.00024778,2]
[345355646,1734179446479,-2000.0,0.00024784,31]
[345355647,1734179446490,-5000.0,0.00024789,2]
[345355648,1734179446499,-5000.0,0.00024799,2]
[345355649,1734179446509,-15441.097723,0.000248,2]
[345355650,1734179446518,-5000.0,0.000248,2]
[345355651,1734179446528,-2476.0,0.00024812,2]
[345355652,1734179446537,-1377.0,0.00024812,2]
[345355653,1734179446547,-2000.0,0.0002482,2]
[345355654,1734179446556,-150.0,0.00024839,120]
[345355655,1734179446566,-2500.0,0.00024879,2]
[345355656,1734179446575,-10809.57962211,0.0002489,30]
[345355657,1734179446584,-14775.66995197,0.000249,2]
[345355658,1734179446594,-31238.4509428,0.000249,12]
[345355659,1734179446603,-151.0,0.000249,7]